fUST/lending_fUST_20241231
["ID","MTS","AMOUNT","RATE_DAILY","PERIOD"]
[347213161,1735579843059,-621.16706,0.000139,2]
[347213163,1735579843068,-621.16706,0.000139,2]
[347213165,1735579843077,-151.0,0.000139,2]
[347213167,1735579843087,-151.0,0.000139,2]
[347213169,1735579843096,-218.234322,0.000139,2]
[347213171,1735579843105,-151.0,0.000139,2]
[347213173,1735579843115,-151.0,0.000139,2]
[347213174,1735579843124,-151.0,0.000139,2]
[347213176,1735579843133,-151.0,0.000139,2]
[347213178,1735579843143,-160.58290988,0.000139,2]
[347213179,1735579843152,-459.365852,0.000139,2]
[347213180,1735579843161,-459.365852,0.000139,2]
[347213181,1735579843171,-151.0,0.000139,2]
[347213182,1735579843180,-1011.30722639,0.00013944,2]
[347213184,1735579843189,-159.288123,0.00013972,2]
[347213185,1735579843198,-500.0,0.00013972,2]
[347213186,1735579843207,-1304.72,0.00013972,2]
[347213187,1735579843217,-766.03,0.00013972,2]
[347213188,1735579843226,-500.0,0.00013972,2]
[347213189,1735579843235,-500.0,0.00013972,2]
[347213191,1735579843319,-500.0,0.00013972,2]
[347213192,1735579843329,-970.24,0.00013972,2]
[347213193,1735579843338,-151.0,0.00013972,2]
[347213194,1735579843347,-151.0,0.00013972,2]
[347213195,1735579843356,-500.0,0.00013972,2]
[347213196,1735579843365,-500.0,0.00013972,2]
[347213197,1735579843380,-4854.82,0.00013972,2]
[347213198,1735579843389,-500.0,0.00013973,2]
[347213199,1735579843399,-500.0,0.00013973,2]
[347213200,1735579843408,-400.0,0.00013973,2]
[347213201,1735579843418,-442.15675583,0.00013999,2]
[347213202,1735579843428,-227.067819,0.00013999,2]
[347213203,1735579843438,-227.067819,0.00013999,2]
[347213204,1735579843449,-160.37057183,0.00013999,2]
[347213205,1735579843459,-1137.95,0.00013999,2]
[347213206,1735579843468,-1137.95,0.00013999,2]
[347213207,1735579843478,-1137.95,0.00013999,2]
[347213208,1735579843487,-1137.95,0.00013999,2]
[347213209,1735579843497,-1137.95,0.00013999,2]
[347213210,1735579843506,-1137.95,0.00013999,2]
[347213211,1735579843516,-1137.95,0.00013999,2]
[347213212,1735579843525,-1137.95,0.00013999,2]
[347213213,1735579843539,-1137.95,0.00013999,2]
[347213214,1735579843548,-1137.95,0.00013999,2]
[347213215,1735579843557,-1137.95,0.00013999,2]
[347213216,1735579843567,-1137.95,0.00013999,2]
[347213217,1735579843577,-1137.97029412,0.00013999,2]
[347213218,1735579843587,-2649535.61898551,0.00014,2]
[347213219,1735579843596,-1500.0,0.00014,2]
[347213220,1735579843606,-1500.0,0.00014,2]
[347213221,1735579843615,-1500.0,0.00014,2]
[347213222,1735579843625,-1500.0,0.00014,2]
[347213223,1735579843634,-1500.0,0.00014,2]
[347213224,1735579843644,-1500.0,0.00014,2]
[347213225,1735579843653,-1500.0,0.00014,2]
[347213226,1735579843662,-1500.0,0.00014,2]
[347213227,1735579843672,-1500.0,0.00014,2]
[347213228,1735579843681,-1500.0,0.00014,2]
[347213229,1735579843690,-1644.59,0.00014,2]
[347213230,1735579843700,-300.53000637,0.00014,2]
[347213231,1735579843710,-1286073.49,0.00014,2]
[347213232,1735579843720,-6019.0,0.00014,2]
[347213233,1735579843730,-1000.0,0.00014,14]
[347213234,1735579843740,-201843.55603736,0.00014,2]
[347213235,1735579843808,-500.0,0.00010958,2]
[347213236,1735579843817,-215.0944365,0.00011506,2]
[347213237,1735579843829,-284.9055635,0.00011506,2]
[347213238,1735579843838,-31675.81885134,0.00014,2]
[347213239,1735579843893,-2866.0,0.00014,2]
[347213240,1735579843905,-944.83511985,0.00014,2]
[347213241,1735579844080,-1927.68703323,0.00014,2]
[347213242,1735579844092,-459.72176269,0.00014,2]
[347213243,1735579844235,-8536.02588486,0.00014,2]
[347213244,1735579844258,-500.0,0.00010848,2]
[347213245,1735579844269,-221.269991,0.00014,2]
[347213246,1735579844282,-21000.0,0.00014,2]
[347213247,1735579844293,-4639.22232667,0.00014,2]
[347213257,1735579845939,-1032.54940778,0.00014,2]
[347213258,1735579845951,-3164.51945481,0.00014,2]
[347213259,1735579846000,-4992.78413041,0.00014,2]
[347213261,1735579846009,-500.0,0.00014,2]
[347213263,1735579846018,-517.04932389,0.00014,2]
[347213265,1735579846027,-7398.1369457,0.00014,2]
[347213274,1735579890889,160.0,0.00021404,120]
[347213275,1735580000057,-10000.0,0.00021181,60]
[347213276,1735580015220,-10000.0,0.00021544,60]
[347213277,1735580015242,-7303.0,0.00021544,60]
[347213279,1735580086086,-200.0,0.00027,120]
[347213280,1735580086107,-629.89314108,0.00027,120]
[347213281,1735580086130,-3364.35637,0.00027397,120]
[347213282,1735580086153,-927.649,0.0002779,120]
[347213283,1735580086176,-1500.0,0.00028,120]
[347213284,1735580086200,-200.0,0.000282,120]
[347213285,1735580086222,-581.57188892,0.0002899,120]
[347213286,1735580086743,-346.04511108,0.0002899,120]
[347213291,1735580197618,-263.4704,0.00029,120]
[347213292,1735580197660,-5209.8213142,0.00029,120]
[347213293,1735580197816,-1930.1786858,0.00029,120]
[347213294,1735580197840,-400.0,0.00029,120]
[347213295,1735580198069,-3270.0,0.0002927,120]
[347213296,1735580198092,-150.5,0.0002927,120]
[347213297,1735580198114,-150.5,0.0002927,120]
[347213298,1735580198135,-3270.0,0.0002927,120]
[347213299,1735580198156,-271.72,0.0002927,120]
[347213300,1735580198178,-150.5,0.0002927,120]
[347213301,1735580198199,-150.5,0.0002927,120]
[347213317,1735580697884,850.349,0.0002779,120]
[347213318,1735580698406,850.393,0.0002899,120]
[347213325,1735580912057,-774.36637781,9.912e-05,2]
[347213326,1735580912082,-774.36637781,0.00010012,2]
[347213327,1735580912107,-227.01193408,0.00010639,2]
[347213328,1735580912228,-72.98806592,0.00010639,2]
[347213329,1735580912254,-288.57230614,0.0001064,2]
[347213330,1735580912288,-1775.7446897,0.0001064,2]
[347213345,1735581035191,-1573.62599611,0.00010429,2]
[347213346,1735581035201,-1573.62599611,0.00010534,2]
[347213347,1735581035210,-5420.50750644,0.0001064,2]
[347213348,1735581035222,-1022.01620722,0.0001064,2]
[347213350,1735581035231,-167.66265465,0.00010858,2]
[347213352,1735581035240,-300.0,0.00010956,2]
[347213353,1735581035249,-500.0,0.00010957,2]
[347213354,1735581035259,-500.0,0.00010957,2]
[347213356,1735581035268,-500.0,0.00010957,2]
[347213358,1735581035278,-500.0,0.00010957,2]
[347213360,1735581035287,-500.0,0.00010957,2]
[347213361,1735581035297,-448.39724032,0.00010957,2]
[347213362,1735581035309,-500.0,0.00010957,2]
[347213363,1735581035318,-500.0,0.00010957,2]
[347213364,1735581035327,-500.0,0.00010957,2]
[347213365,1735581035337,-346.09841903,0.00010957,2]
[347213366,1735581035347,-500.0,0.00010957,2]
[347213367,1735581035356,-500.0,0.00010957,2]
[347213368,1735581035366,-426.1129939,0.00010958,2]
[347213369,1735581035375,-500.0,0.00010958,2]
[347213371,1735581035384,-500.0,0.00010958,2]
[347213373,1735581035394,-500.0,0.00010958,2]
[347213375,1735581035403,-500.0,0.00010958,2]
[347213377,1735581035413,-502.49950893,0.00010958,2]
[347213379,1735581035422,-500.0,0.00010958,2]
[347213381,1735581035431,-500.0,0.00010958,2]
[347213383,1735581035440,-500.0,0.00010958,2]
[347213385,1735581035450,-500.0,0.00010958,2]
[347213387,1735581035459,-500.0,0.00010958,2]
[347213389,1735581035469,-500.0,0.00010958,2]
[347213391,1735581035478,-500.0,0.00010958,2]
[347213393,1735581035488,-500.0,0.00010958,2]
[347213395,1735581035497,-440.7001434,0.00010958,2]
[347213397,1735581035507,-357.45473192,0.00010958,2]
[347213400,1735581035517,-500.0,0.00010958,2]
[347213402,1735581035526,-501.42068149,0.00010958,2]
[347213403,1735581035535,-500.0,0.00010958,2]
[347213404,1735581035544,-500.0,0.00010958,2]
[347213405,1735581035556,-500.0,0.00010958,2]
[347213406,1735581035566,-500.0,0.00010958,2]
[347213407,1735581035575,-485.86651363,0.00010958,2]
[347213408,1735581035584,-503.09049719,0.00010958,2]
[347213409,1735581035594,-505.32038028,0.00010958,2]
[347213410,1735581035603,-500.0,0.00010958,2]
[347213412,1735581035613,-500.0,0.00010958,2]
[347213414,1735581035622,-500.0,0.00010958,2]
[347213416,1735581035631,-500.0,0.00010958,2]
[347213417,1735581035640,-500.0,0.00010958,2]
[347213418,1735581035650,-500.0,0.00010958,2]
[347213419,1735581035659,-500.0,0.00010958,2]
[347213420,1735581035669,-500.0,0.00010958,2]
[347213422,1735581035679,-500.0,0.00010958,2]
[347213424,1735581035688,-500.0,0.00010958,2]
[347213426,1735581035698,-500.0,0.00010958,2]
[347213428,1735581035707,-442.58,0.00010958,2]
[347213429,1735581035716,-488.70790851,0.00010958,2]
[347213430,1735581035725,-500.0,0.00010958,2]
[347213431,1735581035735,-500.0,0.00010958,2]
[347213432,1735581035744,-500.0,0.00010958,2]
[347213433,1735581035754,-500.0,0.00010958,2]
[347213434,1735581035764,-500.0,0.00010958,2]
[347213435,1735581035775,-500.0,0.00010958,2]
[347213436,1735581035788,-500.0,0.00010958,2]
[347213437,1735581035797,-500.0,0.00010958,2]
[347213438,1735581035811,-500.0,0.00010958,2]
[347213439,1735581035821,-500.0,0.00010958,2]
[347213440,1735581035831,-500.0,0.00010958,2]
[347213441,1735581035841,-500.0,0.00010958,2]
[347213442,1735581035850,-500.0,0.00010958,2]
[347213444,1735581035861,-500.0,0.00010958,2]
[347213446,1735581035873,-500.0,0.00010958,2]
[347213448,1735581035883,-500.0,0.00010958,2]
[347213450,1735581035892,-500.0,0.00010958,2]
[347213452,1735581035901,-500.0,0.00010958,2]
[347213454,1735581035911,-500.0,0.00010958,2]
[347213456,1735581035920,-500.0,0.00010958,2]
[347213458,1735581035929,-500.0,0.00010958,2]
[347213460,1735581035939,-500.0,0.00010958,2]
[347213462,1735581035949,-500.0,0.00010958,2]
[347213464,1735581035959,-500.0,0.00010958,2]
[347213466,1735581035968,-500.0,0.00010958,2]
[347213468,1735581035977,-501.14942367,0.00010958,2]
[347213470,1735581035986,-500.0,0.00010958,2]
[347213472,1735581035995,-500.0,0.00010958,2]
[347213474,1735581036004,-500.0,0.00010958,2]
[347213476,1735581036014,-500.0,0.00010958,2]
[347213478,1735581036024,-500.0,0.00010958,2]
[347213480,1735581036033,-500.0,0.00010958,2]
[347213482,1735581036043,-500.0,0.00010958,2]
[347213483,1735581036052,-501.14286277,0.00010958,2]
[347213484,1735581036067,-500.0,0.00010958,2]
[347213485,1735581036076,-500.0,0.00010958,2]
[347213486,1735581036086,-500.0,0.00010958,2]
[347213487,1735581036095,-500.0,0.00010958,2]
[347213488,1735581036104,-500.0,0.00010958,2]
[347213489,1735581036113,-500.0,0.00010958,2]
[347213490,1735581036123,-500.0,0.00010958,2]
[347213491,1735581036132,-500.0,0.00010958,2]
[347213492,1735581036141,-500.0,0.00010958,2]
[347213493,1735581036150,-500.0,0.00010958,2]
[347213494,1735581036160,-500.0,0.00010958,2]
[347213495,1735581036169,-500.0,0.00010958,2]
[347213496,1735581036178,-500.0,0.00010958,2]
[347213497,1735581036187,-500.0,0.00010958,2]
[347213498,1735581036196,-488.62218547,0.00010958,2]
[347213499,1735581036206,-500.0,0.00010958,2]
[347213500,1735581036215,-500.0,0.00010958,2]
[347213501,1735581036224,-500.0,0.00010958,2]
[347213502,1735581036233,-500.0,0.00010958,2]
[347213503,1735581036243,-500.0,0.00010958,2]
[347213504,1735581036253,-500.0,0.00010958,2]
[347213505,1735581036262,-500.0,0.00010958,2]
[347213506,1735581036271,-500.0,0.00010958,2]
[347213507,1735581036280,-500.0,0.00010958,2]
[347213508,1735581036290,-500.0,0.00010958,2]
[347213509,1735581036299,-500.0,0.00010958,2]
[347213510,1735581036312,-440.74708564,0.00010958,2]
[347213511,1735581036321,-500.0,0.00010958,2]
[347213512,1735581036330,-500.0,0.00010958,2]
[347213513,1735581036340,-500.0,0.00010958,2]
[347213514,1735581036349,-500.0,0.00010958,2]
[347213515,1735581036358,-500.0,0.00010958,2]
[347213516,1735581036367,-500.0,0.00010958,2]
[347213517,1735581036376,-500.0,0.00010958,2]
[347213518,1735581036385,-500.0,0.00010958,2]
[347213519,1735581036395,-500.0,0.00010958,2]
[347213520,1735581036404,-500.0,0.00010958,2]
[347213521,1735581036413,-500.0,0.00010958,2]
[347213522,1735581036422,-500.0,0.00010958,2]
[347213523,1735581036432,-518.10546814,0.00010958,2]
[347213524,1735581036441,-500.0,0.00010958,2]
[347213525,1735581036450,-500.0,0.00010958,2]
[347213526,1735581036460,-500.0,0.00010958,2]
[347213527,1735581036469,-500.0,0.00010958,2]
[347213528,1735581036478,-500.0,0.00010958,2]
[347213529,1735581036487,-500.0,0.00010958,2]
[347213530,1735581036496,-500.0,0.00010958,2]
[347213531,1735581036506,-500.0,0.00010958,2]
[347213532,1735581036515,-500.0,0.00010958,2]
[347213533,1735581036524,-593.87125235,0.00010958,2]
[347213534,1735581036533,-500.0,0.00010958,2]
[347213535,1735581036542,-500.0,0.00010958,2]
[347213536,1735581036551,-500.0,0.00010958,2]
[347213537,1735581036565,-641.74,0.00010958,2]
[347213538,1735581036574,-500.0,0.00010958,2]
[347213539,1735581036583,-500.0,0.00010958,2]
[347213540,1735581036592,-500.0,0.00010958,2]
[347213541,1735581036601,-511.41,0.00010958,2]
[347213542,1735581036610,-282.87990086,0.00010958,2]
[347213543,1735581036619,-500.0,0.00010958,2]
[347213544,1735581036628,-500.0,0.00010958,2]
[347213545,1735581036637,-500.0,0.00010958,2]
[347213546,1735581036646,-500.0,0.00010958,2]
[347213547,1735581036655,-500.0,0.00010958,2]
[347213548,1735581036665,-500.0,0.00010958,2]
[347213549,1735581036674,-168.0,0.00010958,2]
[347213550,1735581036683,-500.0,0.00010958,2]
[347213551,1735581036693,-500.0,0.00010958,2]
[347213552,1735581036703,-500.0,0.00010958,2]
[347213553,1735581036712,-510.36033807,0.00010958,2]
[347213554,1735581036721,-500.0,0.00010958,2]
[347213555,1735581036730,-500.0,0.00010958,2]
[347213556,1735581036739,-500.0,0.00010958,2]
[347213557,1735581036748,-500.0,0.00010958,2]
[347213558,1735581036758,-500.0,0.00010958,2]
[347213559,1735581036767,-500.0,0.00010958,2]
[347213560,1735581036778,-288.38580377,0.00010958,2]
[347213561,1735581036788,-27.3801888,0.00010958,2]
[347213562,1735581036812,-472.6198112,0.00010958,2]
[347213563,1735581036822,-180.13471079,0.00010958,2]
[347213595,1735581038066,-319.86528921,0.00010958,2]
[347213597,1735581038076,-507.17243726,0.00010958,2]
[347213599,1735581038086,-500.0,0.00010958,2]
[347213601,1735581038095,-500.0,0.00010958,2]
[347213603,1735581038105,-502.71894693,0.00010958,2]
[347213605,1735581038114,-500.0,0.00010958,2]
[347213607,1735581038123,-580.70063083,0.00010958,2]
[347213608,1735581038132,-222.47883107,0.00010958,2]
[347213610,1735581038142,-500.0,0.00010958,2]
[347213612,1735581038152,-500.0,0.00010958,2]
[347213614,1735581038161,-500.0,0.00010958,2]
[347213616,1735581038170,-500.0,0.00010958,2]
[347213618,1735581038179,-500.0,0.00010958,2]
[347213619,1735581038188,-500.0,0.00010958,2]
[347213621,1735581038197,-500.0,0.00010958,2]
[347213623,1735581038206,-500.0,0.00010958,2]
[347213625,1735581038215,-339.69670432,0.00010958,2]
[347213627,1735581038225,-500.0,0.00010958,2]
[347213628,1735581038234,-500.0,0.00010958,2]
[347213630,1735581038244,-500.0,0.00010958,2]
[347213632,1735581038253,-500.0,0.00010958,2]
[347213634,1735581038264,-500.0,0.00010958,2]
[347213636,1735581038272,-500.0,0.00010958,2]
[347213637,1735581038281,-550.62957544,0.00010958,2]
[347213639,1735581038291,-477.00644524,0.00010958,2]
[347213641,1735581038300,-500.0,0.00010958,2]
[347213645,1735581038311,-500.0,0.00010958,2]
[347213648,1735581038320,-500.0,0.00010958,2]
[347213650,1735581038329,-500.0,0.00010958,2]
[347213651,1735581038338,-500.0,0.00010958,2]
[347213653,1735581038348,-500.0,0.00010958,2]
[347213656,1735581038357,-500.0,0.00010958,2]
[347213659,1735581038366,-522.87966354,0.00010958,2]
[347213662,1735581038375,-500.0,0.00010958,2]
[347213664,1735581038384,-500.0,0.00010958,2]
[347213666,1735581038393,-500.0,0.00010958,2]
[347213668,1735581038402,-500.0,0.00010958,2]
[347213670,1735581038412,-500.0,0.00010958,2]
[347213672,1735581038421,-428.11520465,0.00010958,2]
[347213673,1735581038430,-195.20941019,0.00010958,2]
[347213675,1735581038439,-500.0,0.00010958,2]
[347213677,1735581038448,-500.0,0.00010958,2]
[347213679,1735581038457,-500.0,0.00010958,2]
[347213681,1735581038466,-500.0,0.00010958,2]
[347213682,1735581038475,-500.0,0.00010958,2]
[347213684,1735581038484,-500.0,0.00010958,2]
[347213686,1735581038493,-500.0,0.00010958,2]
[347213688,1735581038502,-500.0,0.00010958,2]
[347213690,1735581038510,-500.0,0.00010958,2]
[347213692,1735581038519,-500.0,0.00010958,2]
[347213693,1735581038528,-500.0,0.00010958,2]
[347213695,1735581038537,-500.0,0.00010958,2]
[347213697,1735581038547,-500.0,0.00010958,2]
[347213699,1735581038558,-500.0,0.00010958,2]
[347213701,1735581038567,-500.0,0.00010958,2]
[347213702,1735581038577,-500.0,0.00010958,2]
[347213704,1735581038586,-500.0,0.00010958,2]
[347213706,1735581038596,-500.0,0.00010958,2]
[347213708,1735581038606,-554.95747308,0.00010958,2]
[347213710,1735581038615,-500.0,0.00010958,2]
[347213712,1735581038624,-500.0,0.00010958,2]
[347213713,1735581038633,-500.0,0.00010958,2]
[347213715,1735581038642,-500.0,0.00010958,2]
[347213717,1735581038651,-502.7,0.00010958,2]
[347213719,1735581038660,-500.0,0.00010958,2]
[347213721,1735581038669,-501.25578917,0.00010958,2]
[347213722,1735581038679,-500.0,0.00010958,2]
[347213724,1735581038689,-500.0,0.00010958,2]
[347213726,1735581038699,-500.0,0.00010958,2]
[347213728,1735581038708,-500.0,0.00010958,2]
[347213730,1735581038717,-500.0,0.00010958,2]
[347213732,1735581038726,-500.49606703,0.00010958,2]
[347213733,1735581038735,-503.29721137,0.00010958,2]
[347213735,1735581038747,-500.0,0.00010958,2]
[347213737,1735581038756,-500.0,0.00010958,2]
[347213739,1735581038767,-313.25508262,0.00010958,2]
[347213741,1735581038780,-500.0,0.00010958,2]
[347213743,1735581038793,-500.0,0.00010958,2]
[347213745,1735581038802,-500.0,0.00010958,2]
[347213746,1735581038813,-503.69407622,0.00010958,2]
[347213748,1735581038822,-500.0,0.00010958,2]
[347213750,1735581038833,-411.87181499,0.00010958,2]
[347213752,1735581038842,-500.0,0.00010958,2]
[347213754,1735581038851,-612.90410159,0.00010958,2]
[347213756,1735581038861,-340.08498079,0.00010958,2]
[347213757,1735581038870,-500.0,0.00010958,2]
[347213759,1735581038879,-500.0,0.00010958,2]
[347213761,1735581038888,-500.0,0.00010958,2]
[347213763,1735581038898,-500.0,0.00010958,2]
[347213765,1735581038907,-560.63,0.00010958,2]
[347213766,1735581038916,-500.0,0.00010958,2]
[347213768,1735581038925,-500.0,0.00010958,2]
[347213770,1735581038939,-500.0,0.00010958,2]
[347213772,1735581038949,-500.0,0.00010958,2]
[347213774,1735581038959,-500.0,0.00010958,2]
[347213776,1735581038968,-677.52,0.00010958,2]
[347213777,1735581038977,-500.0,0.00010958,2]
[347213779,1735581038986,-606.48072109,0.00010958,2]
[347213781,1735581038995,-500.0,0.00010958,2]
[347213783,1735581039004,-500.0,0.00010958,2]
[347213784,1735581039013,-500.0,0.00010958,2]
[347213786,1735581039022,-500.0,0.00010958,2]
[347213788,1735581039034,-500.0,0.00010958,2]
[347213790,1735581039043,-500.0,0.00010958,2]
[347213792,1735581039058,-500.0,0.00010958,2]
[347213793,1735581039073,-500.0,0.00010958,2]
[347213795,1735581039082,-500.0,0.00010958,2]
[347213797,1735581039091,-500.0,0.00010958,2]
[347213799,1735581039099,-500.0,0.00010958,2]
[347213800,1735581039108,-292.10752548,0.00010958,2]
[347213802,1735581039118,-500.0,0.00010958,2]
[347213804,1735581039126,-500.0,0.00010958,2]
[347213806,1735581039136,-500.0,0.00010958,2]
[347213808,1735581039146,-500.0,0.00010958,2]
[347213809,1735581039155,-500.0,0.00010958,2]
[347213811,1735581039164,-504.37884294,0.00010958,2]
[347213813,1735581039174,-500.0,0.00010958,2]
[347213815,1735581039183,-500.0,0.00010958,2]
[347213817,1735581039192,-500.0,0.00010958,2]
[347213818,1735581039201,-621.41,0.00010958,2]
[347213820,1735581039210,-500.0,0.00010958,2]
[347213822,1735581039219,-500.0,0.00010958,2]
[347213824,1735581039228,-500.0,0.00010958,2]
[347213826,1735581039237,-500.0,0.00010958,2]
[347213827,1735581039246,-498.52440015,0.00010958,2]
[347213829,1735581039255,-500.0,0.00010958,2]
[347213831,1735581039265,-500.0,0.00010958,2]
[347213833,1735581039274,-611.22766451,0.00010958,2]
[347213835,1735581039283,-500.0,0.00010958,2]
[347213837,1735581039292,-500.0,0.00010958,2]
[347213838,1735581039301,-500.0,0.00010958,2]
[347213840,1735581039312,-500.0,0.00010958,2]
[347213842,1735581039321,-500.0,0.00010958,2]
[347213844,1735581039330,-500.0,0.00010958,2]
[347213846,1735581039340,-500.0,0.00010958,2]
[347213848,1735581039349,-500.0,0.00010958,2]
[347213849,1735581039359,-2311.75,0.00010958,2]
[347213851,1735581039368,-2311.75,0.00010958,2]
[347213853,1735581039377,-500.0,0.00010958,2]
[347213855,1735581039386,-500.0,0.00010958,2]
[347213857,1735581039396,-2311.75,0.00010958,2]
[347213858,1735581039405,-2311.75,0.00010958,2]
[347213860,1735581039415,-500.0,0.00010958,2]
[347213862,1735581039424,-500.0,0.00010958,2]
[347213864,1735581039433,-500.0,0.00010958,2]
[347213866,1735581039443,-500.0,0.00010958,2]
[347213867,1735581039452,-500.0,0.00010958,2]
[347213869,1735581039462,-500.0,0.00010958,2]
[347213871,1735581039471,-500.0,0.00010958,2]
[347213873,1735581039481,-500.0,0.00010958,2]
[347213875,1735581039490,-500.0,0.00010958,2]
[347213877,1735581039499,-500.0,0.00010958,2]
[347213878,1735581039509,-500.0,0.00010958,2]
[347213880,1735581039518,-500.0,0.00010958,2]
[347213883,1735581039527,-500.0,0.00010958,2]
[347213886,1735581039537,-500.0,0.00010958,2]
[347213888,1735581039546,-500.0,0.00010958,2]
[347213890,1735581039556,-500.0,0.00010958,2]
[347213893,1735581039566,-500.0,0.00010958,2]
[347213895,1735581039575,-500.0,0.00010958,2]
[347213897,1735581039585,-500.0,0.00010958,2]
[347213906,1735581039666,-500.0,0.00010958,2]
[347213908,1735581039678,-500.0,0.00010958,2]
[347213910,1735581039687,-500.0,0.00010958,2]
[347213912,1735581039696,-525.28,0.00010958,2]
[347213913,1735581039706,-500.0,0.00010958,2]
[347213915,1735581039715,-500.0,0.00010958,2]
[347213917,1735581039725,-500.0,0.00010958,2]
[347213919,1735581039734,-500.0,0.00010958,2]
[347213921,1735581039743,-500.0,0.00010958,2]
[347213923,1735581039753,-500.0,0.00010958,2]
[347213925,1735581039762,-500.0,0.00010958,2]
[347213926,1735581039771,-500.0,0.00010958,2]
[347213928,1735581039784,-500.0,0.00010958,2]
[347213930,1735581039793,-500.0,0.00010958,2]
[347213932,1735581039803,-500.0,0.00010958,2]
[347213934,1735581039815,-242.53986151,0.00010958,2]
[347213936,1735581039825,-500.0,0.00010958,2]
[347213938,1735581039835,-500.0,0.00010958,2]
[347213940,1735581039845,-433.39692428,0.00010958,2]
[347213942,1735581039854,-500.0,0.00010958,2]
[347213943,1735581039864,-500.0,0.00010958,2]
[347213945,1735581039873,-500.19138489,0.00010958,2]
[347213947,1735581039882,-500.0,0.00010958,2]
[347213949,1735581039892,-500.0,0.00010958,2]
[347213951,1735581039901,-500.0,0.00010958,2]
[347213953,1735581039910,-500.0,0.00010958,2]
[347213954,1735581039920,-509.19213729,0.00010958,2]
[347213956,1735581039929,-2578.66,0.00010958,2]
[347213958,1735581039939,-500.0,0.00010958,2]
[347213959,1735581039948,-500.0,0.00010958,2]
[347213960,1735581039957,-500.0,0.00010958,2]
[347213961,1735581039967,-500.0,0.00010958,2]
[347213962,1735581039976,-500.0,0.00010958,2]
[347213964,1735581039985,-500.0,0.00010958,2]
[347213965,1735581039995,-537.40391852,0.00010958,2]
[347213966,1735581040004,-582.12308259,0.00010958,2]
[347213967,1735581040013,-500.0,0.00010958,2]
[347213968,1735581040023,-500.0,0.00010958,2]
[347213969,1735581040032,-500.0,0.00010958,2]
[347213971,1735581040040,-500.0,0.00010958,2]
[347213973,1735581040050,-500.0,0.00010958,2]
[347213974,1735581040063,-500.0,0.00010958,2]
[347213976,1735581040073,-500.92938831,0.00010958,2]
[347213977,1735581040082,-500.0,0.00010973,2]
[347213979,1735581040091,-2311.75,0.00011228,2]
[347213980,1735581040101,-500.0,0.00011232,2]
[347213981,1735581040110,-599.64,0.00011232,2]
[347213982,1735581040119,-500.0,0.00011232,2]
[347213983,1735581040129,-500.0,0.00011232,2]
[347213984,1735581040138,-500.0,0.00011232,2]
[347213985,1735581040147,-677.52,0.00011232,2]
[347213986,1735581040157,-500.0,0.00011232,2]
[347213987,1735581040166,-500.0,0.00011232,2]
[347213988,1735581040175,-500.0,0.00011232,2]
[347213989,1735581040185,-500.0,0.00011232,2]